[Event "*** SCC Grand Prix: Titled Tuesday Blitz"]
[Site "Chess.com"]
[Date "2020.08.25"]
[Round "1"]
[White "JoySpaceman"]
[Black "Hikaru"]
[Result "0-1"]
[WhiteElo "2451"]
[BlackElo "3218"]
[TimeControl "180+1"]
[EndTime "10:07:08 PDT"]
[Termination "Hikaru won on time"]

1. d4 {[%clk 0:03:00.9]} 1... Nf6 {[%clk 0:02:59.8]} 2. Nc3 {[%clk 0:03:00.5]}
2... d5 {[%clk 0:02:55.6]} 3. Bf4 {[%clk 0:03:00.4]} 3... a6 {[%clk 0:02:53.9]}
4. e3 {[%clk 0:03:00.1]} 4... Bf5 {[%clk 0:02:53.6]} 5. f3 {[%clk 0:02:54.5]}
5... e6 {[%clk 0:02:53.1]} 6. g4 {[%clk 0:02:54.5]} 6... Bg6 {[%clk 0:02:53.6]}
7. h4 {[%clk 0:02:55.1]} 7... h5 {[%clk 0:02:53.8]} 8. g5 {[%clk 0:02:55.8]}
8... Nfd7 {[%clk 0:02:54.2]} 9. Bd3 {[%clk 0:02:56.1]} 9... Bxd3 {[%clk
0:02:54.9]} 10. Qxd3 {[%clk 0:02:55.6]} 10... c5 {[%clk 0:02:54.3]} 11. a4
{[%clk 0:02:43.8]} 11... Nc6 {[%clk 0:02:54]} 12. Nge2 {[%clk 0:02:41.5]} 12...
Rc8 {[%clk 0:02:48.8]} 13. Kf2 {[%clk 0:02:39.2]} 13... g6 {[%clk 0:02:48.1]}
14. Rhd1 {[%clk 0:02:32.1]} 14... cxd4 {[%clk 0:02:21.4]} 15. exd4 {[%clk
0:02:31.6]} 15... Bg7 {[%clk 0:02:18.7]} 16. Bd6 {[%clk 0:02:16.5]} 16... Nb6
{[%clk 0:02:09.8]} 17. Bc5 {[%clk 0:02:14.1]} 17... Nc4 {[%clk 0:02:10]} 18. b3
{[%clk 0:02:11.3]} 18... Nb2 {[%clk 0:02:09.2]} 19. Qe3 {[%clk 0:02:11.5]} 19...
Nxd1+ {[%clk 0:02:09.5]} 20. Rxd1 {[%clk 0:02:12.1]} 20... b6 {[%clk 0:02:03.5]}
21. Ba3 {[%clk 0:02:10.7]} 21... Ne7 {[%clk 0:02:03.3]} 22. Qd3 {[%clk 0:01:47]}
22... O-O {[%clk 0:01:58.4]} 23. Qxa6 {[%clk 0:01:44.5]} 23... Re8 {[%clk
0:01:58.2]} 24. Rd2 {[%clk 0:01:35.3]} 24... Qc7 {[%clk 0:01:55.8]} 25. Bxe7
{[%clk 0:01:29.3]} 25... Rxe7 {[%clk 0:01:51.7]} 26. Kg2 {[%clk 0:01:25.3]}
26... Qc6 {[%clk 0:01:47.2]} 27. Qd3 {[%clk 0:01:12.7]} 27... e5 {[%clk
0:01:41.6]} 28. dxe5 {[%clk 0:01:09.1]} 28... d4 {[%clk 0:01:41.1]} 29. Ne4
{[%clk 0:00:56.4]} 29... Bxe5 {[%clk 0:01:41.3]} 30. Nxd4 {[%clk 0:00:56.8]}
30... Qd7 {[%clk 0:01:32.9]} 31. c3 {[%clk 0:00:42.8]} 31... Bg7 {[%clk
0:01:19.4]} 32. Qa6 {[%clk 0:00:42.9]} 32... Rb8 {[%clk 0:01:13.9]} 33. Nb5
{[%clk 0:00:40.2]} 33... Qe6 {[%clk 0:01:09.6]} 34. c4 {[%clk 0:00:35.2]} 34...
Rd7 {[%clk 0:01:04.8]} 35. Nbd6 {[%clk 0:00:32]} 35... Be5 {[%clk 0:01:02.2]}
36. c5 {[%clk 0:00:28.6]} 36... bxc5 {[%clk 0:00:55.7]} 37. a5 {[%clk
0:00:07.5]} 37... Rbd8 {[%clk 0:00:48.3]} 38. Nxc5 {[%clk 0:00:04.2]} 38... Rxd6
{[%clk 0:00:46.6]} 39. Nxe6 {[%clk 0:00:04.7]} 39... Rxd2+ {[%clk 0:00:46.6]}
40. Kf1 {[%clk 0:00:05.3]} 40... Rd1+ {[%clk 0:00:39.7]} 41. Ke2 {[%clk
0:00:05.2]} 41... R1d6 {[%clk 0:00:40.3]} 42. Qb5 {[%clk 0:00:04.6]} 42... Rxe6
{[%clk 0:00:40.7]} 43. Kf2 {[%clk 0:00:03.8]} 43... Rd2+ {[%clk 0:00:39.7]} 44.
Kf1 {[%clk 0:00:04.4]} 44... Bg3 {[%clk 0:00:38.4]} 0-1

[Event "*** SCC Grand Prix: Titled Tuesday Blitz"]
[Site "Chess.com"]
[Date "2020.08.25"]
[Round "1"]
[White "gross-aleks"]
[Black "Zmeeed63"]
[Result "1-0"]
[WhiteElo "2584"]
[BlackElo "2254"]
[TimeControl "180+1"]
[EndTime "10:07:10 PDT"]
[Termination "gross-aleks won by resignation"]

1. c4 {[%clk 0:02:56.8]} 1... e6 {[%clk 0:02:59.5]} 2. Nf3 {[%clk 0:02:55.2]}
2... d5 {[%clk 0:02:59.5]} 3. e3 {[%clk 0:02:54]} 3... Nf6 {[%clk 0:02:59.2]} 4.
b3 {[%clk 0:02:54.1]} 4... Be7 {[%clk 0:02:59.1]} 5. Bb2 {[%clk 0:02:54.2]} 5...
O-O {[%clk 0:02:59.7]} 6. d4 {[%clk 0:02:52]} 6... c5 {[%clk 0:02:54.8]} 7. Nbd2
{[%clk 0:02:51.8]} 7... b6 {[%clk 0:02:54.7]} 8. Bd3 {[%clk 0:02:50]} 8... Bb7
{[%clk 0:02:54.4]} 9. O-O {[%clk 0:02:49.2]} 9... Nbd7 {[%clk 0:02:53.6]} 10.
Qe2 {[%clk 0:02:47.7]} 10... cxd4 {[%clk 0:02:46.3]} 11. exd4 {[%clk 0:02:47.1]}
11... dxc4 {[%clk 0:02:46.3]} 12. bxc4 {[%clk 0:02:46.4]} 12... Re8 {[%clk
0:02:40.6]} 13. Rad1 {[%clk 0:02:31.9]} 13... Qc7 {[%clk 0:02:37.2]} 14. Rfe1
{[%clk 0:02:20]} 14... Rad8 {[%clk 0:02:33.8]} 15. Nf1 {[%clk 0:02:17.4]} 15...
Nf8 {[%clk 0:02:22.3]} 16. Ng3 {[%clk 0:02:16.8]} 16... Ng6 {[%clk 0:02:20.2]}
17. Qe3 {[%clk 0:02:15.8]} 17... Nf4 {[%clk 0:02:05.3]} 18. Bf1 {[%clk
0:02:14.3]} 18... Bb4 {[%clk 0:02:02]} 19. Nd2 {[%clk 0:02:05.8]} 19... Ng4
{[%clk 0:01:52.7]} 20. Qb3 {[%clk 0:02:01.7]} 20... Bf8 {[%clk 0:01:44.2]} 21.
Nde4 {[%clk 0:01:57.3]} 21... Be7 {[%clk 0:01:36.8]} 22. a4 {[%clk 0:01:51.3]}
22... h5 {[%clk 0:01:32.3]} 23. h3 {[%clk 0:01:42.1]} 23... Nh6 {[%clk
0:01:21.3]} 24. Qf3 {[%clk 0:01:35.5]} 24... h4 {[%clk 0:01:17.5]} 25. Nh5
{[%clk 0:01:33.1]} 25... Nxh5 {[%clk 0:01:04.6]} 26. Qxh5 {[%clk 0:01:34]} 26...
Qf4 {[%clk 0:01:01.1]} 27. Bc1 {[%clk 0:01:31.3]} 27... Qf5 {[%clk 0:00:58.5]}
28. Ng5 {[%clk 0:01:23.5]} 28... Bxg5 {[%clk 0:00:36.3]} 29. Qxg5 {[%clk
0:01:16.3]} 29... Rd6 {[%clk 0:00:17.4]} 30. Qxh4 {[%clk 0:01:14.1]} 30... Red8
{[%clk 0:00:14.6]} 31. Bg5 {[%clk 0:01:12]} 31... R8d7 {[%clk 0:00:12.8]} 32.
Bd3 {[%clk 0:01:09.6]} 32... Rxd4 {[%clk 0:00:07.9]} 33. Bxf5 {[%clk 0:01:07.6]}
33... Rxd1 {[%clk 0:00:08.8]} 34. Rxd1 {[%clk 0:00:57.8]} 34... Rxd1+ {[%clk
0:00:09.7]} 35. Kh2 {[%clk 0:00:58.3]} 35... Nxf5 {[%clk 0:00:10.6]} 36. Qf4
{[%clk 0:00:56.8]} 36... Bc6 {[%clk 0:00:06.7]} 37. Qb8+ {[%clk 0:00:51.9]}
37... Kh7 {[%clk 0:00:07]} 38. Qxa7 {[%clk 0:00:51.8]} 38... Rb1 {[%clk
0:00:06.3]} 39. Qxf7 {[%clk 0:00:50.5]} 39... Bxa4 {[%clk 0:00:06.1]} 40. g4
{[%clk 0:00:48.9]} 40... Nd4 {[%clk 0:00:05.7]} 41. Bf6 {[%clk 0:00:46.2]} 41...
Nf3+ {[%clk 0:00:03.6]} 42. Kg3 {[%clk 0:00:44.5]} 1-0

[Event "*** SCC Grand Prix: Titled Tuesday Blitz"]
[Site "Chess.com"]
[Date "2020.08.25"]
[Round "1"]
[White "ChronicUnhappiness"]
[Black "GMKrikor"]
[Result "0-1"]
[WhiteElo "2377"]
[BlackElo "2715"]
[TimeControl "180+1"]
[EndTime "10:07:13 PDT"]
[Termination "GMKrikor won on time"]

1. c4 {[%clk 0:03:00.9]} 1... e5 {[%clk 0:02:44.9]} 2. Nc3 {[%clk 0:02:59.4]}
2... Nf6 {[%clk 0:02:34.6]} 3. Nf3 {[%clk 0:02:58.6]} 3... Nc6 {[%clk
0:02:33.5]} 4. e3 {[%clk 0:02:50.1]} 4... Bb4 {[%clk 0:02:31.1]} 5. Qc2 {[%clk
0:02:50.1]} 5... Bxc3 {[%clk 0:02:30.5]} 6. bxc3 {[%clk 0:02:47.2]} 6... O-O
{[%clk 0:02:29.4]} 7. e4 {[%clk 0:02:36.7]} 7... d6 {[%clk 0:02:25.9]} 8. g3
{[%clk 0:02:32.7]} 8... a6 {[%clk 0:02:21.1]} 9. Rb1 {[%clk 0:02:17.6]} 9... h6
{[%clk 0:02:12]} 10. Nh4 {[%clk 0:01:58.8]} 10... Ne7 {[%clk 0:01:43.1]} 11. Bg2
{[%clk 0:01:46.3]} 11... b6 {[%clk 0:01:37.5]} 12. O-O {[%clk 0:01:44.5]} 12...
Be6 {[%clk 0:01:22.9]} 13. d3 {[%clk 0:01:37.7]} 13... g5 {[%clk 0:01:16.5]} 14.
Nf3 {[%clk 0:01:36.4]} 14... Ng6 {[%clk 0:00:59.9]} 15. Nd2 {[%clk 0:01:18.5]}
15... Qd7 {[%clk 0:00:56.7]} 16. Re1 {[%clk 0:01:03.5]} 16... b5 {[%clk
0:00:55.6]} 17. Ba3 {[%clk 0:00:46.7]} 17... Bh3 {[%clk 0:00:41.6]} 18. c5
{[%clk 0:00:40.3]} 18... Bxg2 {[%clk 0:00:40.5]} 19. Kxg2 {[%clk 0:00:41]} 19...
Qg4 {[%clk 0:00:39.9]} 20. f3 {[%clk 0:00:27]} 20... Qe6 {[%clk 0:00:32.1]} 21.
cxd6 {[%clk 0:00:23.3]} 21... cxd6 {[%clk 0:00:33]} 22. Nf1 {[%clk 0:00:22.6]}
22... Rac8 {[%clk 0:00:32]} 23. Qd2 {[%clk 0:00:20.2]} 23... Rfd8 {[%clk
0:00:31]} 24. Ne3 {[%clk 0:00:19.9]} 24... d5 {[%clk 0:00:31.6]} 25. exd5 {[%clk
0:00:10.3]} 25... Nxd5 {[%clk 0:00:29.7]} 26. Nxd5 {[%clk 0:00:09.9]} 26... Qxd5
{[%clk 0:00:30.6]} 27. Rbd1 {[%clk 0:00:07.6]} 27... Kg7 {[%clk 0:00:27.8]} 28.
Bb2 {[%clk 0:00:07]} 28... f6 {[%clk 0:00:27.8]} 29. Qe2 {[%clk 0:00:06.7]}
29... g4 {[%clk 0:00:24.7]} 30. Qe4 {[%clk 0:00:05.6]} 30... gxf3+ {[%clk
0:00:23]} 31. Qxf3 {[%clk 0:00:05.3]} 31... Qxf3+ {[%clk 0:00:19.6]} 32. Kxf3
{[%clk 0:00:03.5]} 32... Kf7 {[%clk 0:00:18.1]} 33. g4 {[%clk 0:00:02.3]} 33...
Ke6 {[%clk 0:00:17.8]} 34. a4 {[%clk 0:00:02.6]} 34... bxa4 {[%clk 0:00:17.1]}
35. c4 {[%clk 0:00:01.1]} 35... Rb8 {[%clk 0:00:17.5]} 0-1

[Event "*** SCC Grand Prix: Titled Tuesday Blitz"]
[Site "Chess.com"]
[Date "2020.08.25"]
[Round "1"]
[White "paulrusan"]
[Black "Zq1"]
[Result "0-1"]
[WhiteElo "2183"]
[BlackElo "2518"]
[TimeControl "180+1"]
[EndTime "10:07:13 PDT"]
[Termination "Zq1 won by resignation"]

1. e4 {[%clk 0:03:00.8]} 1... c5 {[%clk 0:02:59.3]} 2. b4 {[%clk 0:03:00.4]}
2... cxb4 {[%clk 0:02:58.7]} 3. Bb2 {[%clk 0:03:00.5]} 3... d6 {[%clk
0:02:57.8]} 4. d4 {[%clk 0:03:00.1]} 4... Nf6 {[%clk 0:02:56.8]} 5. Bd3 {[%clk
0:02:58.6]} 5... g6 {[%clk 0:02:55.9]} 6. Ne2 {[%clk 0:02:57.9]} 6... Bg7 {[%clk
0:02:55.3]} 7. Nd2 {[%clk 0:02:58.5]} 7... O-O {[%clk 0:02:54.9]} 8. O-O {[%clk
0:02:58.6]} 8... Nc6 {[%clk 0:02:53.7]} 9. h3 {[%clk 0:02:58.3]} 9... e5 {[%clk
0:02:52.7]} 10. f4 {[%clk 0:02:57.4]} 10... exd4 {[%clk 0:02:43.8]} 11. Nxd4
{[%clk 0:02:54.2]} 11... Qb6 {[%clk 0:02:35]} 12. Nf3 {[%clk 0:02:53.7]} 12...
Nh5 {[%clk 0:02:26.8]} 13. Bc4 {[%clk 0:02:33.6]} 13... Nxf4 {[%clk 0:02:17.9]}
14. Kh1 {[%clk 0:02:33.6]} 14... Nh5 {[%clk 0:02:10.3]} 15. Re1 {[%clk
0:02:31.1]} 15... Bd7 {[%clk 0:01:59.9]} 16. Rb1 {[%clk 0:02:30.3]} 16... Rae8
{[%clk 0:01:56.5]} 17. Nxc6 {[%clk 0:02:16.8]} 17... Bxb2 {[%clk 0:01:38.2]} 18.
Rxb2 {[%clk 0:02:11.4]} 18... Bxc6 {[%clk 0:01:35.8]} 19. Bd5 {[%clk 0:01:58.3]}
19... Ng3+ {[%clk 0:01:28.9]} 20. Kh2 {[%clk 0:01:56.3]} 20... Nxe4 {[%clk
0:01:28.1]} 21. Bxe4 {[%clk 0:01:41.8]} 21... Rxe4 {[%clk 0:01:23.5]} 22. Qxd6
{[%clk 0:01:40.6]} 22... Rxe1 {[%clk 0:01:18.6]} 23. Nxe1 {[%clk 0:01:39.7]}
23... Rd8 {[%clk 0:01:18]} 24. Qg3 {[%clk 0:01:35.5]} 24... Rd2 {[%clk
0:01:12.9]} 25. a3 {[%clk 0:01:32.6]} 25... Qf2 {[%clk 0:01:07.7]} 26. axb4
{[%clk 0:01:26.9]} 26... Qxg3+ {[%clk 0:01:05.5]} 27. Kxg3 {[%clk 0:01:26.8]}
27... Re2 {[%clk 0:01:04.4]} 28. Nf3 {[%clk 0:01:27.1]} 28... Be4 {[%clk
0:01:01.6]} 29. Nd4 {[%clk 0:01:08.5]} 29... Rxg2+ {[%clk 0:00:59.8]} 30. Kf4
{[%clk 0:01:08.9]} 30... Bd5 {[%clk 0:00:56.7]} 31. b5 {[%clk 0:01:01.2]} 31...
h5 {[%clk 0:00:49]} 32. Ke5 {[%clk 0:01:01.1]} 32... Rg5+ {[%clk 0:00:44.5]} 33.
Kd6 {[%clk 0:01:00.8]} 33... h4 {[%clk 0:00:41.6]} 34. Rb4 {[%clk 0:00:51.9]}
34... Bg2 {[%clk 0:00:38.8]} 35. Kc7 {[%clk 0:00:42.5]} 35... Rg3 {[%clk
0:00:33.1]} 36. Ra4 {[%clk 0:00:38.5]} 36... Rxh3 {[%clk 0:00:32.4]} 37. Rxa7
{[%clk 0:00:37.8]} 37... Re3 {[%clk 0:00:32.3]} 38. c4 {[%clk 0:00:22.9]} 38...
h3 {[%clk 0:00:31.6]} 39. c5 {[%clk 0:00:23.2]} 39... h2 {[%clk 0:00:31.2]} 40.
Ra1 {[%clk 0:00:22]} 40... h1=Q {[%clk 0:00:29.3]} 41. Rxh1 {[%clk 0:00:21.7]}
41... Bxh1 {[%clk 0:00:29.4]} 42. c6 {[%clk 0:00:20.3]} 42... bxc6 {[%clk
0:00:27.7]} 43. bxc6 {[%clk 0:00:18.7]} 43... Rc3 {[%clk 0:00:24.9]} 44. Kd6
{[%clk 0:00:17.5]} 44... Rxc6+ {[%clk 0:00:23.9]} 45. Nxc6 {[%clk 0:00:17.3]}
45... Bxc6 {[%clk 0:00:23.5]} 0-1

[Event "*** SCC Grand Prix: Titled Tuesday Blitz"]
[Site "Chess.com"]
[Date "2020.08.25"]
[Round "1"]
[White "BigAl"]
[Black "gagtemp"]
[Result "1-0"]
[WhiteElo "2468"]
[BlackElo "1957"]
[TimeControl "180+1"]
[EndTime "10:07:13 PDT"]
[Termination "BigAl won on time"]

1. e4 {[%clk 0:02:20.6]} 1... d5 {[%clk 0:02:59.1]} 2. exd5 {[%clk 0:02:19.3]}
2... Qxd5 {[%clk 0:02:58.7]} 3. Nf3 {[%clk 0:02:19.9]} 3... Bg4 {[%clk
0:02:57.2]} 4. Be2 {[%clk 0:02:19.9]} 4... Nc6 {[%clk 0:02:56.2]} 5. O-O {[%clk
0:02:20.4]} 5... O-O-O {[%clk 0:02:55.4]} 6. Nc3 {[%clk 0:02:19.9]} 6... Qh5
{[%clk 0:02:53.6]} 7. b4 {[%clk 0:02:19.9]} 7... Nf6 {[%clk 0:02:28.8]} 8. b5
{[%clk 0:02:19.7]} 8... Nd4 {[%clk 0:02:26.6]} 9. Nxd4 {[%clk 0:02:10.6]} 9...
Rxd4 {[%clk 0:02:27.5]} 10. Bxg4+ {[%clk 0:01:59.2]} 10... Rxg4 {[%clk
0:02:03.8]} 11. h3 {[%clk 0:01:57.6]} 11... Rh4 {[%clk 0:02:00.8]} 12. Qxh5
{[%clk 0:01:56.8]} 12... Rxh5 {[%clk 0:01:57.9]} 13. d4 {[%clk 0:01:47.2]} 13...
e6 {[%clk 0:01:55.4]} 14. a4 {[%clk 0:01:31.3]} 14... Bd6 {[%clk 0:01:42.6]} 15.
Ne2 {[%clk 0:01:30.8]} 15... Rg8 {[%clk 0:01:29.9]} 16. c4 {[%clk 0:01:14.4]}
16... g5 {[%clk 0:01:24.3]} 17. f3 {[%clk 0:01:10.9]} 17... Rh4 {[%clk
0:01:06.4]} 18. Be3 {[%clk 0:00:56.6]} 18... Rh6 {[%clk 0:00:49.1]} 19. a5
{[%clk 0:00:47.8]} 19... Rhg6 {[%clk 0:00:46.4]} 20. a6 {[%clk 0:00:45.7]} 20...
b6 {[%clk 0:00:45.2]} 21. Nc3 {[%clk 0:00:33.5]} 21... h5 {[%clk 0:00:41.4]} 22.
Ne4 {[%clk 0:00:32.5]} 22... Nxe4 {[%clk 0:00:34.1]} 23. fxe4 {[%clk 0:00:32.6]}
23... R6g7 {[%clk 0:00:30.2]} 24. e5 {[%clk 0:00:31.5]} 24... Be7 {[%clk
0:00:22.4]} 25. Rf2 {[%clk 0:00:31.7]} 25... g4 {[%clk 0:00:20.1]} 26. hxg4
{[%clk 0:00:29.8]} 26... hxg4 {[%clk 0:00:19.8]} 27. Raf1 {[%clk 0:00:28.5]}
27... Bd8 {[%clk 0:00:07.3]} 28. Rxf7 {[%clk 0:00:27.1]} 28... Rg6 {[%clk
0:00:07]} 29. Rh7 {[%clk 0:00:20.7]} 29... g3 {[%clk 0:00:06.8]} 30. Rff7 {[%clk
0:00:20.4]} 30... Rg4 {[%clk 0:00:05.1]} 31. Kf1 {[%clk 0:00:19.2]} 31... Re4
{[%clk 0:00:04.8]} 32. Ke2 {[%clk 0:00:19.5]} 32... Reg4 {[%clk 0:00:01.7]} 33.
Kf3 {[%clk 0:00:16.8]} 33... R4g6 {[%clk 0:00:01.6]} 34. Bf4 {[%clk 0:00:15.9]}
1-0

[Event "*** SCC Grand Prix: Titled Tuesday Blitz"]
[Site "Chess.com"]
[Date "2020.08.25"]
[Round "1"]
[White "Gvetadze"]
[Black "mbojan"]
[Result "0-1"]
[WhiteElo "2404"]
[BlackElo "2799"]
[TimeControl "180+1"]
[EndTime "10:07:19 PDT"]
[Termination "mbojan won by resignation"]

1. Nf3 {[%clk 0:03:00.9]} 1... Nf6 {[%clk 0:02:59.6]} 2. g3 {[%clk 0:03:01.8]}
2... g6 {[%clk 0:02:59.8]} 3. Bg2 {[%clk 0:03:02.5]} 3... Bg7 {[%clk 0:03:00.4]}
4. O-O {[%clk 0:03:03.2]} 4... O-O {[%clk 0:03:01.1]} 5. d3 {[%clk 0:03:03.7]}
5... d5 {[%clk 0:02:59.4]} 6. Nbd2 {[%clk 0:03:03.7]} 6... Bg4 {[%clk
0:02:47.6]} 7. c4 {[%clk 0:03:00.8]} 7... c6 {[%clk 0:02:45.1]} 8. Qb3 {[%clk
0:03:00.3]} 8... Qb6 {[%clk 0:02:38.4]} 9. Qc2 {[%clk 0:02:59.9]} 9... Bxf3
{[%clk 0:02:37.7]} 10. Bxf3 {[%clk 0:02:59.3]} 10... e6 {[%clk 0:02:37.8]} 11.
Nb3 {[%clk 0:02:59.3]} 11... Nbd7 {[%clk 0:02:36.5]} 12. e4 {[%clk 0:02:58.7]}
12... dxe4 {[%clk 0:02:33]} 13. dxe4 {[%clk 0:02:58.5]} 13... Rfd8 {[%clk
0:02:27]} 14. c5 {[%clk 0:02:57]} 14... Qc7 {[%clk 0:02:26.5]} 15. Bf4 {[%clk
0:02:57]} 15... e5 {[%clk 0:02:18.6]} 16. Be3 {[%clk 0:02:56.4]} 16... Nf8
{[%clk 0:02:16.6]} 17. Rfd1 {[%clk 0:02:49.9]} 17... Ne6 {[%clk 0:02:16.6]} 18.
Kg2 {[%clk 0:02:47.2]} 18... Nd7 {[%clk 0:02:07.2]} 19. Rd6 {[%clk 0:02:41.6]}
19... Bf8 {[%clk 0:02:04.5]} 20. Rxe6 {[%clk 0:02:41.7]} 20... fxe6 {[%clk
0:02:04]} 21. Qc4 {[%clk 0:02:41.4]} 21... Re8 {[%clk 0:02:03.6]} 22. Bg4 {[%clk
0:02:41.5]} 22... Kf7 {[%clk 0:02:03.5]} 23. f4 {[%clk 0:02:40.6]} 23... Nf6
{[%clk 0:02:00.2]} 24. Bh3 {[%clk 0:02:35.6]} 24... Rad8 {[%clk 0:01:52.1]} 25.
Rf1 {[%clk 0:02:34.8]} 25... Kg7 {[%clk 0:01:42.3]} 26. Bxe6 {[%clk 0:02:28.6]}
26... exf4 {[%clk 0:01:36.4]} 27. gxf4 {[%clk 0:02:22.8]} 27... Rxe6 {[%clk
0:01:16.3]} 28. Qxe6 {[%clk 0:02:21.6]} 28... Re8 {[%clk 0:01:16.8]} 29. Qc4
{[%clk 0:02:20.1]} 29... Rxe4 {[%clk 0:01:15.3]} 30. Qc3 {[%clk 0:02:17.3]}
30... Kg8 {[%clk 0:00:52.1]} 31. Bd4 {[%clk 0:01:36.4]} 31... Nd5 {[%clk
0:00:51.1]} 32. Qg3 {[%clk 0:01:30.3]} 32... Rxf4 {[%clk 0:00:37.3]} 33. Re1
{[%clk 0:01:15.3]} 33... Qf7 {[%clk 0:00:33.6]} 34. Be5 {[%clk 0:01:11]} 34...
Rf5 {[%clk 0:00:33.3]} 35. Nd4 {[%clk 0:01:10.5]} 35... Rh5 {[%clk 0:00:25.8]}
36. Rf1 {[%clk 0:01:03.4]} 36... Qe8 {[%clk 0:00:22.6]} 37. Nf5 {[%clk
0:00:49.4]} 37... Bxc5 {[%clk 0:00:15.2]} 38. Ng7 {[%clk 0:00:47.4]} 38... Qxe5
{[%clk 0:00:14.8]} 39. Nxh5 {[%clk 0:00:47.6]} 39... Qe2+ {[%clk 0:00:08.7]} 40.
Rf2 {[%clk 0:00:40.3]} 40... Qxf2+ {[%clk 0:00:08.9]} 41. Qxf2 {[%clk
0:00:40.6]} 41... Bxf2 {[%clk 0:00:09.8]} 42. Ng3 {[%clk 0:00:38.6]} 42... Bxg3
{[%clk 0:00:10.1]} 43. hxg3 {[%clk 0:00:39.5]} 43... Kf7 {[%clk 0:00:10.8]} 44.
Kf3 {[%clk 0:00:39.9]} 44... Ke6 {[%clk 0:00:11.7]} 45. Ke4 {[%clk 0:00:40.8]}
45... Nf6+ {[%clk 0:00:11.6]} 46. Kf4 {[%clk 0:00:40.7]} 46... b6 {[%clk
0:00:12.5]} 47. g4 {[%clk 0:00:41]} 47... h6 {[%clk 0:00:12.4]} 48. g5 {[%clk
0:00:41.9]} 48... Nd5+ {[%clk 0:00:12]} 49. Ke4 {[%clk 0:00:41.3]} 49... hxg5
{[%clk 0:00:12.9]} 50. Kd4 {[%clk 0:00:41.7]} 50... g4 {[%clk 0:00:13.3]} 51. b4
{[%clk 0:00:42.6]} 51... g3 {[%clk 0:00:13.8]} 0-1

[Event "*** SCC Grand Prix: Titled Tuesday Blitz"]
[Site "Chess.com"]
[Date "2020.08.25"]
[Round "1"]
[White "ZverevLev"]
[Black "mirceaparligras"]
[Result "0-1"]
[WhiteElo "2334"]
[BlackElo "2669"]
[TimeControl "180+1"]
[EndTime "10:07:19 PDT"]
[Termination "mirceaparligras won by checkmate"]

1. e4 {[%clk 0:02:58.7]} 1... e6 {[%clk 0:03:00.1]} 2. d4 {[%clk 0:02:58]} 2...
d5 {[%clk 0:03:00.2]} 3. Nc3 {[%clk 0:02:56.3]} 3... Nf6 {[%clk 0:02:59.5]} 4.
Bg5 {[%clk 0:02:52.4]} 4... Be7 {[%clk 0:02:58.2]} 5. e5 {[%clk 0:02:51.5]} 5...
Nfd7 {[%clk 0:02:57.1]} 6. h4 {[%clk 0:02:50.6]} 6... Bxg5 {[%clk 0:02:42.8]} 7.
hxg5 {[%clk 0:02:48.8]} 7... Qxg5 {[%clk 0:02:43.7]} 8. Nh3 {[%clk 0:02:42.5]}
8... Qe7 {[%clk 0:02:34.3]} 9. Nf4 {[%clk 0:02:38.6]} 9... a6 {[%clk 0:02:22.9]}
10. Bd3 {[%clk 0:02:28.4]} 10... g6 {[%clk 0:02:13.9]} 11. Bxg6 {[%clk
0:02:20.8]} 11... fxg6 {[%clk 0:02:11.2]} 12. Nxg6 {[%clk 0:02:19.6]} 12... hxg6
{[%clk 0:02:11]} 13. Rxh8+ {[%clk 0:02:15.6]} 13... Nf8 {[%clk 0:02:11.2]} 14.
Qg4 {[%clk 0:02:14.6]} 14... Qg7 {[%clk 0:02:00.5]} 15. Rh1 {[%clk 0:02:11.9]}
15... Nc6 {[%clk 0:01:55.7]} 16. O-O-O {[%clk 0:02:07.6]} 16... Bd7 {[%clk
0:01:52.4]} 17. Qg5 {[%clk 0:02:03.7]} 17... Ne7 {[%clk 0:01:47.7]} 18. Rh2
{[%clk 0:01:57.2]} 18... O-O-O {[%clk 0:01:45.9]} 19. Rdh1 {[%clk 0:01:56.8]}
19... Nf5 {[%clk 0:01:36.8]} 20. Qf4 {[%clk 0:01:53.8]} 20... g5 {[%clk
0:01:31.6]} 21. Qd2 {[%clk 0:01:52.1]} 21... g4 {[%clk 0:01:26.8]} 22. Ne2
{[%clk 0:01:48.2]} 22... Ng6 {[%clk 0:01:15.6]} 23. Nf4 {[%clk 0:01:41.4]} 23...
Nxf4 {[%clk 0:01:13.5]} 24. Qxf4 {[%clk 0:01:42.3]} 24... Qg6 {[%clk 0:01:08.7]}
25. g3 {[%clk 0:01:38]} 25... Kb8 {[%clk 0:00:58.1]} 26. c3 {[%clk 0:01:33.4]}
26... Ba4 {[%clk 0:00:53.5]} 27. b3 {[%clk 0:01:28.5]} 27... Bb5 {[%clk
0:00:53.1]} 28. Kd2 {[%clk 0:01:24.2]} 28... Rc8 {[%clk 0:00:48.9]} 29. a4
{[%clk 0:01:20.4]} 29... Be8 {[%clk 0:00:46.8]} 30. Rh8 {[%clk 0:01:16.2]} 30...
c5 {[%clk 0:00:45]} 31. Rc1 {[%clk 0:01:10.3]} 31... c4 {[%clk 0:00:41.9]} 32.
b4 {[%clk 0:01:07.8]} 32... Bxa4 {[%clk 0:00:40.7]} 33. Rxc8+ {[%clk 0:01:03]}
33... Kxc8 {[%clk 0:00:41.6]} 34. Rh1 {[%clk 0:01:02]} 34... Kb8 {[%clk
0:00:31]} 35. Ke2 {[%clk 0:00:54.9]} 35... Bc2 {[%clk 0:00:29.2]} 36. Kd2 {[%clk
0:00:49.9]} 36... Be4 {[%clk 0:00:25.3]} 37. Rh2 {[%clk 0:00:46]} 37... Bf3
{[%clk 0:00:24.1]} 38. Kc1 {[%clk 0:00:40.4]} 38... Ka7 {[%clk 0:00:23.1]} 39.
Kb2 {[%clk 0:00:39.9]} 39... Qe8 {[%clk 0:00:16.7]} 40. Ka3 {[%clk 0:00:37.2]}
40... Bd1 {[%clk 0:00:15.8]} 41. Kb2 {[%clk 0:00:33.6]} 41... Qa4 {[%clk
0:00:15.5]} 42. Qd2 {[%clk 0:00:32.6]} 42... Qb3+ {[%clk 0:00:14.3]} 43. Kc1
{[%clk 0:00:32.1]} 43... Bf3 {[%clk 0:00:14]} 44. Qb2 {[%clk 0:00:31.2]} 44...
Qd1# {[%clk 0:00:14]} 0-1